lending/lending_fUSD_20250323
["ID","MTS","AMOUNT","RATE_DAILY","PERIOD"]
[356573696,1742699432463,-620.88,0.00017707,2]
[356573697,1742699432472,-620.88,0.00017743,2]
[356573698,1742699432481,-620.88,0.00017779,2]
[356573699,1742699432490,-620.88,0.00017815,2]
[356573700,1742699432500,-1141.49793504,0.00018,2]
[356573701,1742699432509,-23786.43600662,0.00018,2]
[356573702,1742699432518,-200.0,0.00018082,2]
[356573703,1742699432527,-1707.07029397,0.000181,2]
[356573704,1742699432536,-280.41,0.00018408,2]
[356573705,1742699432545,-275.98470947,0.00018433,2]
[356573706,1742699432554,-5608.13,0.00018533,2]
[356573707,1742699432563,-5683.7,0.00018533,2]
[356573708,1742699432572,-19999.99,0.00018533,2]
[356573709,1742699432581,-173.78,0.000186,2]
[356573710,1742699432590,-300.0,0.00018764,2]
[356573711,1742699432599,-194.43989995,0.00019,2]
[356573712,1742699432608,-284.91533451,0.00019,2]
[356573713,1742699432617,-8983.69992174,0.00019,2]
[356573714,1742699432627,-1000.0,0.0001902,2]
[356573715,1742699432636,-150.0,0.0001919,2]
[356573716,1742699432645,-1000.0,0.00019254,2]
[356573717,1742699432655,-500.0,0.00019339,2]
[356573718,1742699432665,-150.0,0.00019348,2]
[356573719,1742699432674,-539.646,0.00019348,2]
[356573720,1742699432683,-3941.0,0.00019348,2]
[356573721,1742699432693,-151.0,0.00019348,2]
[356573722,1742699432702,-1014.0,0.00019348,2]
[356573723,1742699432712,-3303.21201454,0.0001961,2]
[356573724,1742699432722,-1303.41,0.00019729,2]
[356573725,1742699432731,-3016.07005368,0.0001987,2]
[356573726,1742699432741,-989.8998816,0.0001987,2]
[356573727,1742699432750,-726.85671394,0.0001987,2]
[356573728,1742699432759,-166.04,0.00019878,2]
[356573729,1742699432768,-14000.0,0.00019896,2]
[356573730,1742699432778,-857.162,0.000199,2]
[356573731,1742699432788,-222.0,0.000199,2]
[356573732,1742699432797,-249.50585088,0.000199,2]
[356573733,1742699432806,-119717.18963858,0.0001993,2]
[356573734,1742699432827,-453.51,0.0001993,2]
[356573735,1742699432838,-75708.68417663,0.0001993,2]
[356573736,1742699432849,-298.86,0.0001993,2]
[356573737,1742699432860,-2995.11799,0.0001993,2]
[356573738,1742699432876,-2688.10164875,0.0001993,2]
[356573739,1742699432894,-13462.04068137,0.0001993,2]
[356573742,1742699437672,-386.8134353,0.00015101,2]
[356573746,1742699439596,-284.8855047,0.00015101,2]
[356573747,1742699439606,-500.0,0.00016474,2]
[356573748,1742699439615,-197.01039015,0.00016474,2]
[356573749,1742699439700,-38.76021252,0.00016474,2]
[356573750,1742699439710,-1064.19978745,0.0001993,2]
[356573751,1742699439721,-585.24380002,0.0001993,2]
[356573752,1742699439732,-1932.26532724,0.0001993,2]
[356573753,1742699439743,-7914.0620872,0.0001993,2]
[356573754,1742699439754,-470.00437315,0.0001993,2]
[356573928,1742700427585,189.43519632,9.14e-05,2]
[356573933,1742700474167,1336.30578562,0.0001,2]
[356573934,1742700478100,1525809.7126338,0.0001,2]
[356574109,1742700631710,-718.889993,0.00011999,2]
[356574110,1742700631767,-281.110007,0.00011999,2]
[356574111,1742700631777,-150.0,0.00011999,2]
[356574112,1742700631786,-300.0,0.00011999,2]
[356574113,1742700631795,-435.15281941,0.00011999,2]
[356574114,1742700631878,-64.84718059,0.00011999,2]
[356574115,1742700631887,-180.34859553,0.00011999,2]
[356574116,1742700631896,-317.30422388,0.00012,2]
[356574117,1742700631935,-11477.56866556,0.00012,2]
[356574329,1742700637613,-4381.8936374,0.00012,2]
[356574330,1742700637624,-12267.11953098,0.00012,2]
[356574331,1742700637672,-152816.8677166,0.00012,2]
[356574332,1742700637684,-12000.0,0.00012,2]
[356574333,1742700637695,-50897.56208084,0.00012,2]
[356574334,1742700637707,-983.76745006,0.00012,2]
[356574335,1742700637718,-439.2082749,0.00012,2]
[356574336,1742700637729,-4820.80980342,0.00012,2]
[356574337,1742700637741,-3821.21033686,0.00012,2]
[356574338,1742700637753,-2036.35572487,0.00012,2]
[356574339,1742700637763,-1235.0,0.00012,2]
[356574340,1742700637786,-359.28,0.00012,2]
[356574457,1742700639925,-425.87266651,0.00012,2]
[356574458,1742700639937,-328.7014259,0.00012,2]
[356574494,1742700642715,-349.66610001,0.00012,2]
[356574497,1742700643488,-523.1466018,0.00012,2]
[356574498,1742700643499,-19552.70306202,0.00012,2]
[356574499,1742700643510,-990.39214911,0.00012,2]
[356574503,1742700645623,-5510.1542467,0.00012,2]
[356574507,1742700645680,-279.0414,0.00012,2]
[356574508,1742700645692,-313.06330969,0.00012,2]
[356574509,1742700645703,-1670.30229356,0.00012,2]
[356574510,1742700645736,-496.302152,0.00012,2]
[356574511,1742700645749,-2292.37939588,0.00012,2]
[356574512,1742700645848,-8339.51204235,0.00012,2]
[356574513,1742700645908,-1435.53305781,0.00012,2]
[356574514,1742700645920,-11487.40386403,0.00012,2]
[356574515,1742700645963,-348.95445286,0.00012,2]
[356574516,1742700646020,-864.53248379,0.00012,2]
[356574519,1742700965298,226.24979,0.00012,6]
[356574522,1742701284856,188.54149,0.00012,6]
[356574525,1742701603994,157.11791,0.00012,6]
[356574662,1742701831862,-169.72,0.0001176,2]
[356574663,1742701831872,-150.0,0.00011791,2]
[356574664,1742701831881,-404.96,0.000118,2]
[356574665,1742701831892,-481.05072526,0.000118,2]
[356574666,1742701831904,-721.64177466,0.000118,2]
[356574667,1742701831919,-783.24445239,0.000118,2]
[356574668,1742701831928,-370.8217689,0.00011822,2]
[356574669,1742701831937,-370.8217689,0.00011861,2]
[356574670,1742701831946,-213.86215788,0.000119,2]
[356574671,1742701831955,-370.8217689,0.000119,2]
[356574672,1742701831964,-678.39959964,0.000119,2]
[356574673,1742701831974,-8909.09893368,0.000119,2]
[356574674,1742701831984,-182.45115318,0.00011999,2]
[356574675,1742701831993,-195918.92877613,0.00012,2]
[356574676,1742701832004,-6617.25393517,0.00012,2]
[356574677,1742701832015,-16397.11992757,0.00012,2]
[356574678,1742701832028,-3171.72375124,0.00012,2]
[356574679,1742701832039,-7564.10273858,0.00012,2]
[356574680,1742701832051,-6973.55718314,0.00012,2]
[356574681,1742701832066,-700.0,0.00012,2]
[356574682,1742701832080,-1124.49855846,0.00012,2]
[356574683,1742701832091,-1550.0,0.00012,2]
[356574684,1742701832103,-952.11347398,0.00012,2]
[356574685,1742701832151,-1660.92944437,0.00012,2]
[356574686,1742701832162,-644.42027014,0.00012,2]
[356574687,1742701832172,-1348.67739087,0.00012,2]
[356574688,1742701832183,-3336.06246916,0.00012,2]
[356574689,1742701832214,-346.96563049,0.00012,2]
[356574699,1742701837789,-2504.60403909,0.00012,2]
[356574700,1742701837801,-278.35824588,0.00012,2]
[356574701,1742701837847,-661.29448133,0.00012,2]
[356574702,1742701837905,-2559.33589369,0.00012,2]
[356574720,1742701839900,-2685.66968128,0.00012,2]
[356574721,1742701839911,-905.0,0.00012,2]
[356574735,1742701840070,-1037.25410501,0.00012,2]
[356574739,1742701840128,-647.93106815,0.00012,2]
[356574740,1742701840140,-4534.94174274,0.00012,2]
[356574741,1742701840187,-2954.77490577,0.00012,2]
[356574742,1742701840198,-1206.27999999,0.00012,2]
[356574751,1742701843726,-6597.416152,0.00012,2]
[356574752,1742701843741,-493.09706335,0.00012,2]
[356574756,1742701845906,-335456.75353115,0.00012,2]
[356574757,1742701845961,-502.00081645,0.00012,2]
[356574758,1742701846235,-737.1887471,0.00012,2]
[356574759,1742701846248,-598.12499338,0.00012,2]
[356574760,1742701846346,-42232.60073248,0.00012,2]
[356574761,1742701869543,1096.2,0.00031774,120]
[356574762,1742702188800,157.11791,0.00012,6]
[356574763,1742702508224,157.11792,0.00012,6]
[356574764,1742702626674,3300.0,0.0003177,120]
[356574765,1742702678107,150.0,0.00012519,7]
[356574810,1742702955039,172.61322907,0.00012,6]
[356574910,1742702986954,-1161.69,0.00010776,2]
[356574911,1742702986982,-150.0,0.00011197,2]
[356574912,1742702987009,-1335.92094367,0.00011422,2]
[356574913,1742702997855,157.11791,0.00012,6]
[356574918,1742703032016,-252.52,0.00011469,2]
[356574919,1742703032025,-200.0,0.00011519,2]
[356574920,1742703032034,-278.74854003,0.00011618,2]
[356574921,1742703032043,-169.721,0.0001176,2]
[356574922,1742703032052,-150.0,0.00011853,2]
[356574923,1742703032061,-150.0,0.00011853,2]
[356574924,1742703032070,-84.71329052,0.000119,2]
[356574925,1742703032081,-402.91371413,0.000119,2]
[356574926,1742703032092,-382.23193864,0.000119,2]
[356574927,1742703032103,-2779.40885671,0.000119,2]
[356574928,1742703032113,-210.92778238,0.000119,2]
[356574929,1742703032122,-645.0290206,0.000119,2]
[356574930,1742703032130,-654.03489964,0.000119,2]
[356574931,1742703032139,-3959.59952616,0.000119,2]
[356574932,1742703032148,-4866.53037587,0.000119,2]
[356574933,1742703032156,-12076.33106282,0.0001199,2]
[356574934,1742703032165,-1000.0,0.00011999,2]
[356574935,1742703032174,-150.0,0.00011999,2]
[356574936,1742703032184,-300.56746623,0.00011999,2]
[356574937,1742703032193,-661521.45987304,0.00012,2]
[356574938,1742703032204,-320.09861389,0.00012,2]
[356574939,1742703032336,-1478.71110155,0.00012,2]
[356574940,1742703032347,-614.72573488,0.00012,2]
[356574943,1742703038000,-500.0,0.000118,2]
[356575117,1742703040145,-301.475,0.000118,2]
[356575119,1742703040156,-325.71756835,0.000118,2]
[356575122,1742703040167,-558.89350208,0.000118,2]
[356575267,1742703043732,-497.48261386,0.000118,2]
[356575268,1742703043742,-45493.63507365,0.00012,2]
[356575269,1742703043753,-2260.76583272,0.00012,2]
[356575270,1742703043790,-779181.76055584,0.00012,2]
[356575313,1742703362857,157.11792,0.00012,6]
[356575315,1742703682066,157.11793,0.00012,6]
[356575343,1742704079178,10321.08466272,0.0001,2]
[356575344,1742704079206,3273.77955501,0.0001,2]
[356575345,1742704079229,3273.77955501,0.0001,2]
[356575346,1742704079254,3273.77955501,0.0001,2]
[356575347,1742704079277,3273.77955501,0.0001,2]
[356575348,1742704079301,3273.77955501,0.0001,2]
[356575349,1742704079326,3273.77955501,0.0001,2]
[356575350,1742704079349,3273.77955501,0.0001,2]
[356575351,1742704079372,3273.77955501,0.0001,2]
[356575352,1742704079395,3273.77955501,0.0001,2]
[356575353,1742704079418,3273.77955501,0.0001,2]
[356575355,1742704125793,-540.0,0.0001,2]
[356575362,1742704146425,863.05487175,9.99e-05,2]
[356575363,1742704146455,2074.17137922,9.99e-05,2]
[356575367,1742704155384,-4323.85836605,0.0001,2]
[356575371,1742704155423,-4323.85836605,0.0001,2]
[356575373,1742704155459,-4323.85836605,0.0001,2]
[356575375,1742704155492,-4323.85836605,0.0001,2]
[356575376,1742704155529,-4323.85836605,0.0001,2]
[356575377,1742704155561,-4323.85836605,0.0001,2]
[356575378,1742704155596,-4323.85836605,0.0001,2]
[356575379,1742704155633,-4323.85836605,0.0001,2]
[356575380,1742704155670,-4323.85836605,0.0001,2]
[356575381,1742704155806,-4323.85836605,0.0001,2]
[356575382,1742704155846,-4323.85836605,0.0001,2]
[356575384,1742704155902,-4275.81075938,0.0001,2]
[356575385,1742704155964,-4323.85836605,0.0001,2]
[356575386,1742704156028,-4323.85836605,0.0001,2]
[356575387,1742704156071,-4323.85836605,0.0001,2]
[356575424,1742704180166,-5620.05492373,0.0001,2]
[356575426,1742704180218,-5620.05492373,0.0001,2]
[356575431,1742704180446,-5620.05492373,0.0001,2]
[356575432,1742704180485,-5620.05492373,0.0001,2]
[356575433,1742704180521,-5620.05492373,0.0001,2]
[356575434,1742704180563,-5620.05492373,0.0001,2]
[356575435,1742704180600,-837.51079275,0.0001,2]
[356575441,1742704216951,-150.0,0.00013349,7]
[356575449,1742704232270,-150.0,9.999e-05,2]
[356575450,1742704232280,-328787.86456223,0.0001,2]
[356575451,1742704232291,-66263.95439674,0.0001,2]
[356575452,1742704232328,-455.36,0.0001,2]
[356575453,1742704232339,-1544.26314497,0.0001,2]
[356575454,1742704232387,-601.54859924,0.0001,2]
[356575455,1742704232398,-1917.29626969,0.0001,2]
[356575456,1742704232452,-1212.81282996,0.0001,2]
[356575459,1742704238124,-2052.01424084,0.0001,2]
[356575460,1742704238137,-30792.77321398,0.0001,2]
[356575461,1742704238157,-5857.11735741,0.0001,2]
[356575462,1742704238211,-289.12255999,0.0001,2]
[356575463,1742704238222,-1695.70601764,0.0001,2]
[356575464,1742704238241,-407.4634176,0.0001,2]
[356575465,1742704238253,-7710.74342811,0.0001,2]
[356575466,1742704238266,-941.57868834,0.0001,2]
[356575467,1742704238300,-5805.96,0.0001,2]
[356575468,1742704238412,-996.7615039,0.0001,2]
[356575479,1742704240542,-38352.95170704,0.0001,2]
[356575480,1742704240600,-267.25832379,0.0001,2]
[356575481,1742704240713,-2482.0,0.0001,2]
[356575505,1742704244222,-5058.03608477,0.0001,2]
[356575515,1742704246268,-710.81898075,0.0001,2]
[356575517,1742704246279,-1729.24609705,0.0001,2]
[356575519,1742704246291,-562.36238471,0.0001,2]
[356575520,1742704246369,-283.57026456,0.0001,2]
[356575521,1742704246445,-16074.58931408,0.0001,2]
[356575522,1742704246457,-4811.03657429,0.0001,2]
[356575523,1742704246467,-150.0,0.00010299,2]
[356575524,1742704246477,-610.43257296,0.00010498,2]
[356575525,1742704246490,-1126.17,0.00010597,2]
[356575526,1742704246499,-217.77360995,0.00010972,2]
[356575527,1742704246509,-250.0,0.0001098,2]
[356575528,1742704246518,-255.0,0.00010999,2]
[356575529,1742704246529,-4591.16176133,0.00011,2]
[356575530,1742704246539,-150.0,0.00011,2]
[356575531,1742704246548,-1046.25,0.00011186,2]
[356575532,1742704246558,-23900.0,0.0001123,2]
[356575533,1742704246568,-1440.80266527,0.00011281,2]
[356575534,1742704246580,-14591.14733473,0.00011281,2]
[356575535,1742704246590,-736.75,0.00011319,2]
[356575536,1742704246599,-150.0,0.00011359,2]
[356575537,1742704246608,-200.0,0.00011431,2]
[356575538,1742704246618,-150.0,0.00011657,2]
[356575539,1742704246628,-278.74854004,0.00011712,2]
[356575540,1742704246638,-4822.9311,0.000118,2]
[356575541,1742704246647,-606.2145,0.000118,2]
[356575542,1742704246657,-1609.1152,0.000118,2]
[356575543,1742704246667,-223.5509,0.000118,2]
[356575544,1742704246677,-267.9351,0.000118,2]
[356575545,1742704246688,-1886.9774,0.000118,2]
[356575546,1742704246697,-202.0,0.0001189,2]
[356575547,1742704246707,-433.0381,0.000119,2]
[356575548,1742704246716,-42330.9047,0.000119,2]
[356575549,1742704246726,-236.8253,0.000119,2]
[356575550,1742704246735,-2247.6677,0.000119,2]
[356575551,1742704246745,-1000.0,0.000119,2]
[356575552,1742704246754,-2704.1519,0.000119,2]
[356575553,1742704246764,-13821.9714,0.000119,2]
[356575554,1742704246774,-7656.2104,0.000119,2]
[356575555,1742704246783,-48894.7199,0.000119,2]
[356575557,1742704246792,-4926.0831,0.000119,2]
[356575558,1742704246801,-166.7558,0.000119,2]
[356575559,1742704246811,-834.439,0.000119,2]
[356575560,1742704246820,-405.69752289,0.000119,2]
[356575561,1742704246829,-1746.3535,0.000119,2]
[356575562,1742704246838,-204.46726602,0.000119,2]
[356575563,1742704246848,-2607.6417,0.000119,2]
[356575564,1742704246857,-430.01934706,0.000119,2]
[356575565,1742704246867,-151.76031723,0.00011999,2]
[356575566,1742704246876,-12510.59414662,0.00012,2]
[356575567,1742704247136,-2647.73328687,0.00012,2]
[356575568,1742704364349,-4900.0,0.00012,2]
[356575569,1742704447982,152.65639,7.945e-05,2]
[356575571,1742704732413,150.0,0.0001163,7]
[356575572,1742704833479,-1703.44,0.00011854,2]
[356575573,1742704833503,-150.0,0.00011877,2]
[356575574,1742704833525,-48687.7147,0.000119,2]
[356575575,1742704833547,-2500.0,0.000119,2]
[356575576,1742704833570,-150.0,0.00011911,2]
[356575577,1742704833592,-569.73706804,0.00011912,2]
[356575578,1742704833613,-286.6795647,0.00011912,2]
[356575579,1742704833635,-1695.12,0.00011923,2]
[356575580,1742704833657,-501.2930626,0.00011973,2]
[356575581,1742704833679,-202.69,0.0001199,2]
[356575582,1742704833703,-1076446.66154635,0.00012,2]
[356575583,1742705081128,963.75,0.00025,60]
[356575592,1742705381750,-150.0,0.00011902,2]
[356575593,1742705381774,-200.0,0.00011904,2]
[356575594,1742705381795,-191.1197098,0.00011934,2]
[356575595,1742705381819,-14458.8802902,0.00012,2]
[356575598,1742705432523,-531.75459694,0.00011917,2]
[356575599,1742705432533,-44382.94866187,0.00012,2]
[356575600,1742705432544,-306.0,0.00012,2]
[356575601,1742705432577,-648.62785843,0.00012,2]
[356575602,1742705432588,-19552.68858613,0.00012,2]
[356575603,1742705432600,-876.49,0.00012,2]
[356575604,1742705432635,-478.00911267,0.00012,2]
[356575605,1742705432646,-25430.0,0.00012,2]
[356575606,1742705432657,-6099.9999999,0.00012,2]
[356575607,1742705432667,-5880.0,0.00012,2]
[356575608,1742705432679,-3550.000005,0.00012,2]
[356575609,1742705432690,-1300.0,0.00012,2]
[356575610,1742705432701,-541.02982009,0.00012,2]
[356575611,1742705432712,-3148.97995,0.00012,2]
[356575612,1742705432726,-674.003,0.00012,2]
[356575613,1742705432765,-51020.04527399,0.00012,2]
[356575614,1742705432807,-1158.5934276,0.00012,2]
[356575697,1742705437263,-5602.70304,0.00012,2]
[356575698,1742705437320,-1104.90149786,0.00012,2]
[356575699,1742705437331,-42781.75302735,0.00012,2]
[356575700,1742705437342,-668.64405319,0.00012,2]
[356575701,1742705437377,-527.2484197,0.00012,2]
[356575702,1742705437435,-1605.84217161,0.00012,2]
[356575703,1742705437447,-612.60000005,0.00012,2]
[356575704,1742705437491,-1426.51243399,0.00012,2]
[356575705,1742705437502,-1290.0,0.00012,2]
[356575706,1742705437616,-1011.85,0.00012,2]
[356575708,1742705437627,-1513.64060896,0.00012,2]
[356575710,1742705437639,-7524.1778732,0.00012,2]
[356575712,1742705437650,-900.48983006,0.00012,2]
[356575715,1742705437661,-2388.6000052,0.00012,2]
[356575756,1742705439490,-1112.42936015,0.00012,2]
[356575759,1742705439646,-43072.49877035,0.00012,2]
[356575760,1742705439657,-859.63000492,0.00012,2]
[356575761,1742705439812,-840.77658634,0.00012,2]
[356575762,1742705439823,-2015.94855758,0.00012,2]
[356576027,1742705442700,-16118.65899163,0.00012,2]
[356576028,1742705442715,-7017.21120099,0.00012,2]
[356576029,1742705442728,-9103.5,0.00012,2]
[356576031,1742705443540,-2245.03525817,0.00012,2]
[356576032,1742705443551,-4897.1909532,0.00012,2]
[356576033,1742705443562,-9289.25953684,0.00012,2]
[356576034,1742705443587,-494422.02996881,0.00012,2]
[356576038,1742705445328,-31402.39687458,0.00012,2]
[356576039,1742705445340,-5727.067215,0.00012,2]
[356576040,1742705445495,-126356.20725987,0.00012,2]
[356576041,1742705445553,-1602.70349695,0.00012,2]
[356576042,1742705445609,-1395.43751036,0.00012,2]
[356576199,1742705588328,3200.0,7.945e-05,2]
[356576201,1742706135578,692.0,0.00025,60]
[356576202,1742706208369,3587.31692153,9e-05,2]
[356576217,1742706631559,-531.95291652,0.00011034,2]
[356576218,1742706631569,-596.72793885,0.00011035,2]
[356576219,1742706631581,-159.10286115,0.00011035,2]
[356576220,1742706631590,-2939.60980785,0.00011076,2]
[356576221,1742706631617,-2197.49535776,0.00011076,2]
[356576222,1742706631628,-6152.18994641,0.00011076,2]
[356576223,1742706631785,-2903.71306986,0.00011076,2]
[356576224,1742706631798,-3807.81671501,0.00011076,2]
[356576225,1742706631809,-2253.66982854,0.00011076,2]
[356576230,1742706637495,-3645.50527457,0.00011076,2]
[356576231,1742706637504,-202.84876145,0.00011099,2]
[356576232,1742706637513,-150.0,0.00011134,2]
[356576233,1742706637523,-246.53846747,0.00011135,2]
[356576234,1742706637547,-3.46153253,0.00011135,2]
[356576235,1742706637557,-2649.43122744,0.00011135,2]
[356576236,1742706637568,-1363.83747749,0.00011135,2]
[356576237,1742706637659,-1848.58418204,0.00011135,2]
[356576238,1742706637717,-8402.87019244,0.00011135,2]
[356576282,1742706639599,-1771.96607913,0.00011135,2]
[356576283,1742706639656,-1370.50164888,0.00011135,2]
[356576284,1742706639825,-798.52623198,0.00011135,2]
[356576285,1742706639836,-900.0,0.00011135,2]
[356576286,1742706639847,-1030.82396,0.00011135,2]
[356576287,1742706639935,-500.0,0.00011135,2]
[356576288,1742706639993,-4000.0,0.00011135,2]
[356576289,1742706640052,-7817.01558886,0.00011135,2]
[356576299,1742706640859,400.0,0.000114,4]
[356576318,1742706643596,-1641.49,0.00011098,2]
[356576319,1742706643608,-5094.09384872,0.00011135,2]
[356576320,1742706643622,-1986.82732598,0.00011135,2]
[356576321,1742706643635,-500.0,0.00011135,2]
[356576322,1742706643650,-1124.89343353,0.00011135,2]
[356576323,1742706643693,800.0,0.000115,4]
[356576324,1742706645059,1200.0,0.000116,4]
[356576325,1742706645685,-126397.34664736,0.00011135,2]
[356576327,1742706647153,1700.0,0.000117,4]
[356576328,1742706649295,2100.0,0.000118,4]
[356576329,1742706651428,400.0,0.000119,4]
[356576330,1742706653558,1179.77,9.152e-05,2]
[356576331,1742706724748,250.0,0.00031756,90]
[356576332,1742706725054,250.0,0.00031756,90]
[356576333,1742706874723,167.30851,0.00012,6]
[356576334,1742707124093,200.0,9.796e-05,2]
[356576335,1742707195097,528.0,0.00010223,2]
[356576336,1742707268420,528.0,7.945e-05,2]
[356576337,1742707345706,200.0,9.715e-05,2]
[356576338,1742707485418,167.30851,0.0001244,7]
[356576339,1742707485989,-1188.970792,0.00010181,2]
[356576340,1742707486013,-150.0,0.00010232,2]
[356576341,1742707486038,-155.39,0.00010294,2]
[356576342,1742707486061,-4287.39,0.00010321,2]
[356576343,1742707486085,-155.39,0.00010323,2]
[356576344,1742707486110,-155.39,0.00010352,2]
[356576345,1742707486134,-155.39,0.00010382,2]
[356576346,1742707486159,-155.39,0.00010411,2]
[356576347,1742707486182,-196.0,0.00010415,2]
[356576348,1742707486205,-37754.63375659,0.00010416,2]
[356576349,1742707486228,-150.0,0.00010423,2]
[356576350,1742707486252,-593.9102999,0.00010423,2]
[356576351,1742707486276,-9999.99,0.00010424,2]
[356576352,1742707486300,-9999.99,0.00010424,2]
[356576353,1742707486324,-11098.24,0.00010424,2]
[356576354,1742707486350,-9999.99,0.00010424,2]
[356576355,1742707486374,-150.99,0.00010424,2]
[356576356,1742707486400,-3292.71,0.00010424,2]
[356576357,1742707486426,-1652.8,0.00010424,2]
[356576358,1742707486449,-1120.87,0.00010425,2]
[356576359,1742707486473,-999.99,0.00010425,2]
[356576360,1742707486496,-278.88,0.00010425,2]
[356576361,1742707486520,-299.99,0.00010425,2]
[356576362,1742707486544,-150.99,0.00010425,2]
[356576363,1742707486568,-643.55,0.00010425,2]
[356576364,1742707486591,-30422.64,0.00010425,2]
[356576365,1742707486616,-6895.33,0.00010425,2]
[356576366,1742707486639,-9295.19,0.00010425,2]
[356576367,1742707486662,-3628.65,0.00010425,2]
[356576368,1742707486685,-60887.3,0.00010426,2]
[356576369,1742707486708,-155.39,0.0001044,2]
[356576370,1742707486732,-155.39,0.0001047,2]
[356576371,1742707486754,-501.2930626,0.00010473,2]
[356576372,1742707486778,-155.39,0.00010499,2]
[356576373,1742707486806,-155.39,0.00010529,2]
[356576374,1742707486830,-155.39,0.00010558,2]
[356576375,1742707486853,-300.0,0.00010587,2]
[356576376,1742707486876,-155.39,0.00010587,2]
[356576377,1742707486900,-155.39,0.00010617,2]
[356576378,1742707486923,-1808.35,0.00010646,2]
[356576379,1742707486947,-155.39,0.00010646,2]
[356576380,1742707486972,-155.39,0.00010676,2]
[356576381,1742707486995,-1703.44,0.00010684,2]
[356576382,1742707487019,-155.39,0.00010705,2]
[356576383,1742707487043,-1951.85,0.00010771,2]
[356576384,1742707487067,-184.3,0.00010938,2]
[356576385,1742707487091,-150.0,0.00010959,2]
[356576386,1742707487115,-736.75,0.00011021,2]
[356576387,1742707487138,-267.9351,0.00011035,2]
[356576388,1742707487161,-1886.9774,0.00011035,2]
[356576389,1742707487184,-433.0381,0.00011035,2]
[356576390,1742707487208,-802.6426,0.00011035,2]
[356576391,1742707487234,-177.154585,0.00011099,2]
[356576392,1742707487258,-223.5509,0.00011115,2]
[356576393,1742707487281,-2247.6677,0.00011115,2]
[356576394,1742707487305,-377.7661,0.00011115,2]
[356576395,1742707487330,-1000.0,0.00011124,2]
[356576396,1742707487353,-1746.3535,0.00011124,2]
[356576397,1742707487378,-59570.18215615,0.00011135,2]
[356576398,1742707487402,-1000.0,0.00011147,2]
[356576399,1742707487425,-1026.77,0.00011176,2]
[356576400,1742707487448,-150.0,0.00011199,2]
[356576401,1742707487473,-227.89,0.00011215,2]
[356576402,1742707487497,-36451.8812,0.00011224,2]
[356576403,1742707487521,-150.0,0.00011245,2]
[356576404,1742707487546,-356.66098112,0.00011272,2]
[356576405,1742707487570,-236.8253,0.00011406,2]
[356576406,1742707487601,-1179.77,0.00011416,2]
[356576407,1742707487632,-164.65203455,0.00011431,2]
[356576408,1742707487656,-590.59900802,0.00011431,2]
[356576409,1742707487680,-648.89623196,0.00011431,2]
[356576410,1742707487705,-154.15,0.00011431,2]
[356576411,1742707487730,-255.0,0.00011444,2]
[356576412,1742707487755,-177.15458499,0.00011474,2]
[356576413,1742707487780,-648.89623194,0.00011483,2]
[356576414,1742707487805,-139267.6941,0.00011506,2]
[356576415,1742707487830,-1014.36400686,0.00011531,2]
[356576416,1742707487854,-648.89623194,0.00011535,2]
[356576417,1742707487879,-2582.2092,0.00011551,2]
[356576418,1742707487903,-648.89623194,0.00011587,2]
[356576419,1742707487929,-648.89623194,0.00011639,2]
[356576420,1742707487953,-648.89623194,0.00011692,2]
[356576421,1742707487980,-1000.0,0.000117,2]
[356576422,1742707488005,-1000.0,0.000117,2]
[356576423,1742707488029,-648.89623194,0.00011744,2]
[356576424,1742707488052,-1000.0,0.0001178,2]
[356576425,1742707488076,-648.89623194,0.00011796,2]